fUSD/lending_fUSD_20250818
["ID","MTS","AMOUNT","RATE_DAILY","PERIOD"]
[380079073,1755531344537,-2282.12,0.0003041,120]
[380079074,1755531344575,-1106.6,0.0003041,120]
[380079075,1755531344612,-400.0,0.0003041,120]
[380079076,1755531344647,-400.0,0.0003041,120]
[380079077,1755531344684,-400.0,0.0003041,120]
[380079078,1755531344720,-400.0,0.0003041,120]
[380079079,1755531344755,-400.0,0.0003041,120]
[380079080,1755531344790,-445.88,0.0003041,120]
[380079081,1755531344825,-400.0,0.0003041,120]
[380079082,1755531344859,-2342.43,0.0003041,120]
[380079083,1755531344895,-604.45,0.0003041,120]
[380079084,1755531344930,-400.0,0.0003041,120]
[380079085,1755531344963,-690.75,0.0003041,120]
[380079086,1755531344998,-400.0,0.0003041,120]
[380079087,1755531345033,-3288.28,0.0003041,120]
[380079088,1755531345068,-400.0,0.0003041,120]
[380079089,1755531345103,-973.5,0.0003041,120]
[380079090,1755531345138,-400.0,0.0003041,120]
[380079091,1755531345175,-747.29,0.0003041,120]
[380079092,1755531345215,-400.0,0.0003041,120]
[380079093,1755531345369,-400.0,0.0003041,120]
[380079094,1755531345409,-400.0,0.0003041,120]
[380079095,1755531345447,-400.0,0.0003041,120]
[380079096,1755531345487,-400.0,0.0003041,120]
[380079097,1755531345524,-1016.94,0.0003041,120]
[380079098,1755531345562,-3392.66,0.0003041,120]
[380079099,1755531345599,-1203.61,0.0003041,120]
[380079100,1755531345635,-400.0,0.0003041,120]
[380079101,1755531345676,-400.0,0.0003041,120]
[380079102,1755531345716,-400.0,0.0003041,120]
[380079103,1755531345755,-400.0,0.0003041,120]
[380079104,1755531345792,-400.0,0.0003041,120]
[380079105,1755531345831,-400.0,0.0003041,120]
[380079106,1755531345867,-400.0,0.0003041,120]
[380079107,1755531345904,-989.16,0.0003041,120]
[380079108,1755531345940,-400.0,0.0003041,120]
[380079109,1755531345978,-400.0,0.0003041,120]
[380079110,1755531346016,-1432.8,0.0003041,120]
[380079111,1755531346053,-3778.72,0.0003041,120]
[380079112,1755531346088,-4673.51,0.0003041,120]
[380079113,1755531346124,-743.68,0.0003041,120]
[380079114,1755531346163,-1495.96,0.0003041,120]
[380079115,1755531346198,-400.4133463,0.0003041,120]
[380079116,1755531346240,-400.0,0.0003041,120]
[380079117,1755531346286,-2164.77,0.0003041,120]
[380079118,1755531346331,-3118.28,0.0003041,120]
[380079119,1755531346423,-400.0,0.0003041,120]
[380079120,1755531346462,-1085.7,0.0003041,120]
[380079121,1755531346501,-2066.34,0.0003041,120]
[380079122,1755531346540,-561.03,0.0003041,120]
[380079123,1755531346576,-913.61,0.0003041,120]
[380079124,1755531346615,-400.0,0.0003041,120]
[380079125,1755531346654,-400.0,0.0003041,120]
[380079126,1755531346691,-400.0,0.0003041,120]
[380079127,1755531346731,-3893.67,0.0003041,120]
[380079128,1755531346768,-400.0,0.0003041,120]
[380079129,1755531346805,-4227.26,0.0003041,120]
[380079130,1755531346841,-1002.61,0.0003041,120]
[380079131,1755531346878,-400.0,0.0003041,120]
[380079132,1755531346914,-400.0,0.0003041,120]
[380079133,1755531346951,-556.8,0.0003041,120]
[380079134,1755531346988,-525.85,0.0003041,120]
[380079135,1755531347024,-400.0,0.0003041,120]
[380079136,1755531347060,-1303.3,0.0003041,120]
[380079137,1755531347098,-413.38,0.0003041,120]
[380079138,1755531347134,-400.0,0.0003041,120]
[380079139,1755531347174,-2411.06,0.0003041,120]
[380079140,1755531347212,-400.0,0.0003041,120]
[380079141,1755531347251,-308.55,0.0003041,120]
[380079142,1755531347290,-2535.69,0.0003041,120]
[380079143,1755531347329,-400.0,0.0003041,120]
[380079144,1755531347367,-400.0,0.0003041,120]
[380079145,1755531347404,-400.0,0.0003041,120]
[380079146,1755531347442,-400.0,0.0003041,120]
[380079147,1755531347482,-2781.02,0.0003041,120]
[380079148,1755531347521,-400.0,0.0003041,120]
[380079149,1755531347558,-400.0,0.0003041,120]
[380079150,1755531347601,-1476.96,0.0003041,120]
[380079151,1755531347638,-400.0,0.0003041,120]
[380079152,1755531347672,-506.37,0.0003041,120]
[380079153,1755531347705,-474.09,0.0003041,120]
[380079154,1755531347739,-1084.99,0.0003041,120]
[380079155,1755531347771,-1634.71,0.0003041,120]
[380079156,1755531347803,-400.0,0.0003041,120]
[380079157,1755531347836,-775.69,0.0003041,120]
[380079158,1755531347866,-454.27887661,0.0003041,120]
[380079159,1755531347897,-534.94,0.0003041,120]
[380079160,1755531347929,-400.0,0.0003041,120]
[380079161,1755531347960,-400.0,0.0003041,120]
[380079162,1755531347991,-1958.02,0.0003041,120]
[380079163,1755531348024,-1791.81,0.0003041,120]
[380079164,1755531348059,-400.0,0.0003041,120]
[380079165,1755531348096,-400.0,0.0003041,120]
[380079166,1755531348134,-400.0,0.0003041,120]
[380079167,1755531348172,-3543.48,0.0003041,120]
[380079168,1755531348216,-1670.51,0.0003041,120]
[380079169,1755531348253,-400.0,0.0003041,120]
[380079170,1755531348290,-2415.99,0.0003041,120]
[380079171,1755531348325,-1102.14,0.0003041,120]
[380079172,1755531348362,-687.69,0.0003041,120]
[380079173,1755531348397,-400.0,0.0003041,120]
[380079174,1755531348434,-19812.68,0.0003041,118]
[380079175,1755531348470,-3372.1,0.0003041,120]
[380079176,1755531348507,-400.0,0.0003041,120]
[380079177,1755531348540,-4270.16,0.0003041,120]
[380079178,1755531348572,-400.0,0.0003041,120]
[380079179,1755531348606,-1884.34,0.0003041,120]
[380079180,1755531348639,-669.38,0.0003041,120]
[380079181,1755531348673,-400.0,0.0003041,120]
[380079182,1755531348712,-3014.36,0.0003041,120]
[380079183,1755531348746,-400.0,0.0003041,120]
[380079184,1755531348779,-400.0,0.0003041,120]
[380079185,1755531348815,-976.71,0.0003041,120]
[380079186,1755531348849,-876.05,0.0003041,120]
[380079187,1755531348882,-400.0,0.0003041,120]
[380079188,1755531348916,-400.0,0.0003041,120]
[380079189,1755531348949,-3182.87,0.0003041,120]
[380079190,1755531348987,-400.0,0.0003041,120]
[380079191,1755531349023,-400.0,0.0003041,120]
[380079192,1755531349057,-740.2,0.0003041,60]
[380079193,1755531349093,-1128.3,0.0003041,120]
[380079194,1755531349130,-400.0,0.0003041,120]
[380079195,1755531349167,-945.45,0.0003041,120]
[380079196,1755531349205,-400.0,0.0003041,120]
[380079197,1755531349244,-400.0,0.0003041,120]
[380079198,1755531349285,-400.0,0.0003041,120]
[380079199,1755531349324,-4022.61,0.0003041,120]
[380079200,1755531349362,-400.0,0.0003041,120]
[380079201,1755531349402,-1051.15,0.0003041,120]
[380079202,1755531349441,-1236.79,0.0003041,120]
[380079203,1755531349479,-2738.72,0.0003041,120]
[380079204,1755531349516,-854.45,0.0003041,120]
[380079205,1755531349554,-400.0,0.0003041,120]
[380079206,1755531349591,-400.0,0.0003041,120]
[380079207,1755531349628,-400.0,0.0003041,120]
[380079208,1755531349664,-843.31,0.0003041,120]
[380079209,1755531349700,-3726.41,0.0003041,120]
[380079210,1755531349873,-2471.99,0.0003041,120]
[380079211,1755531349910,-2738.93,0.0003041,120]
[380079212,1755531349944,-681.47,0.0003041,120]
[380079213,1755531349978,-400.0,0.0003041,120]
[380079214,1755531350012,-400.0,0.0003041,120]
[380079215,1755531350045,-400.0,0.0003041,120]
[380079216,1755531350078,-400.0,0.0003041,120]
[380079217,1755531350112,-1497.04,0.0003041,120]
[380079218,1755531350147,-400.0,0.0003041,120]
[380079219,1755531350181,-400.0,0.0003041,120]
[380079220,1755531350221,-400.0,0.0003041,120]
[380079221,1755531350256,-3010.51,0.0003041,120]
[380079222,1755531350290,-503.52,0.0003041,120]
[380079223,1755531350325,-400.0,0.0003041,120]
[380079224,1755531350360,-1595.04,0.0003041,120]
[380079225,1755531350395,-400.0,0.0003041,120]
[380079226,1755531350432,-400.0,0.0003041,120]
[380079227,1755531350468,-400.0,0.0003041,120]
[380079228,1755531350505,-4163.41,0.0003041,120]
[380079229,1755531350542,-1233.8,0.0003041,120]
[380079230,1755531350578,-400.0,0.0003041,120]
[380079231,1755531350614,-580.22,0.0003041,120]
[380079232,1755531350653,-4646.68,0.0003041,120]
[380079233,1755531350690,-400.0,0.0003041,120]
[380079234,1755531350727,-400.0,0.0003041,120]
[380079235,1755531350765,-883.26,0.0003041,120]
[380079236,1755531350803,-2941.91,0.0003041,120]
[380079237,1755531350840,-400.0,0.0003041,120]
[380079238,1755531350877,-2788.1,0.0003041,120]
[380079239,1755531350913,-1770.77,0.0003041,120]
[380079240,1755531350948,-988.38,0.0003041,120]
[380079241,1755531350981,-1397.53,0.0003041,120]
[380079242,1755531351015,-1601.67,0.0003041,120]
[380079243,1755531351056,-5433.63,0.0003041,120]
[380079244,1755531351092,-1220.41,0.0003041,120]
[380079245,1755531351127,-213.24478625,0.0003041,120]
[380079246,1755531351162,-400.0,0.0003041,120]
[380079247,1755531351195,-400.0,0.0003041,120]
[380079248,1755531351236,-2556.06,0.0003041,120]
[380079249,1755531351274,-1720.59,0.0003041,120]
[380079250,1755531351312,-400.0,0.0003041,120]
[380079251,1755531351350,-1882.5,0.0003041,120]
[380079252,1755531351387,-400.0,0.0003041,120]
[380079253,1755531351425,-415.48,0.0003041,120]
[380079254,1755531351461,-793.65,0.0003041,120]
[380079255,1755531351498,-297.22144877,0.0003041,120]
[380079256,1755531351535,-400.0,0.0003041,120]
[380079257,1755531351571,-400.0,0.0003041,120]
[380079258,1755531351607,-400.0,0.0003041,120]
[380079259,1755531351642,-400.0,0.0003041,120]
[380079260,1755531351676,-2054.98,0.0003041,120]
[380079261,1755531351713,-615.8,0.0003041,120]
[380079262,1755531351748,-3483.3,0.0003041,120]
[380079263,1755531351780,-400.0,0.0003041,120]
[380079264,1755531351814,-400.0,0.0003041,120]
[380079265,1755531351848,-2422.74,0.0003041,120]
[380079266,1755531351891,-400.0,0.0003041,120]
[380079267,1755531351988,-400.0,0.0003041,120]
[380079268,1755531352026,-400.0,0.0003041,120]
[380079269,1755531352063,-562.07,0.0003041,120]
[380079270,1755531352098,-400.0,0.0003041,120]
[380079271,1755531352136,-400.0,0.0003041,120]
[380079272,1755531352176,-400.0,0.0003041,120]
[380079273,1755531352224,-3650.68,0.0003041,120]
[380079274,1755531352267,-400.0,0.0003041,120]
[380079275,1755531352305,-400.0,0.0003041,120]
[380079276,1755531352341,-2186.73,0.0003041,120]
[380079277,1755531352378,-649.93,0.0003041,120]
[380079278,1755531352414,-983.99,0.0003041,120]
[380079279,1755531352449,-400.0,0.0003041,120]
[380079280,1755531352485,-400.0,0.0003041,120]
[380079281,1755531352521,-859.27,0.0003041,120]
[380079282,1755531352558,-1281.96,0.0003041,120]
[380079283,1755531352594,-841.07,0.0003041,120]
[380079284,1755531352630,-400.0,0.0003041,120]
[380079285,1755531352667,-400.0,0.0003041,120]
[380079286,1755531352703,-2567.96,0.0003041,120]
[380079287,1755531352739,-3451.67,0.0003041,120]
[380079288,1755531352772,-400.0,0.0003041,120]
[380079289,1755531352806,-400.0,0.0003041,120]
[380079290,1755531352838,-400.0,0.0003041,120]
[380079291,1755531352871,-1001.3,0.0003041,120]
[380079292,1755531352905,-400.0,0.0003041,120]
[380079293,1755531352939,-659.67,0.0003041,120]
[380079294,1755531352972,-8683.4,0.0003041,120]
[380079295,1755531353007,-2497.13,0.0003041,120]
[380079296,1755531353040,-400.0,0.0003041,120]
[380079297,1755531353074,-400.0,0.0003041,120]
[380079298,1755531353112,-1919.24,0.0003041,120]
[380079299,1755531353150,-400.0,0.0003041,120]
[380079300,1755531353191,-768.45,0.0003041,120]
[380079301,1755531353230,-400.0,0.0003041,120]
[380079302,1755531353271,-21144.29,0.0003041,120]
[380079303,1755531353648,-904.33,0.0003041,120]
[380079304,1755531353687,-1577.09,0.0003041,120]
[380079305,1755531353725,-400.0,0.0003041,120]
[380079306,1755531353764,-400.0,0.0003041,120]
[380079307,1755531353800,-612.34,0.0003041,120]
[380079308,1755531353835,-435.79,0.0003041,120]
[380079309,1755531353873,-494.54,0.0003041,120]
[380079310,1755531353911,-846.91,0.0003041,120]
[380079311,1755531353950,-406.64,0.0003041,120]
[380079312,1755531353991,-4015.71,0.0003041,60]
[380079313,1755531354028,-400.0,0.0003041,120]
[380079314,1755531354068,-400.0,0.0003041,120]
[380079315,1755531354106,-400.0,0.0003041,120]
[380079316,1755531354146,-400.0,0.0003041,120]
[380079317,1755531354183,-400.0,0.0003041,120]
[380079318,1755531354224,-400.0,0.0003041,120]
[380079319,1755531354265,-2929.19,0.0003041,120]
[380079320,1755531354305,-1996.52,0.0003041,120]
[380079321,1755531354345,-688.76,0.0003041,120]
[380079322,1755531354385,-1859.75,0.0003041,120]
[380079323,1755531354424,-1073.88,0.0003041,120]
[380079324,1755531354462,-400.0,0.0003041,120]
[380079325,1755531354500,-4014.32,0.0003041,120]
[380079326,1755531354546,-400.0,0.0003041,120]
[380079327,1755531354585,-1582.07,0.0003041,120]
[380079328,1755531354623,-400.0,0.0003041,120]
[380079329,1755531354663,-1006.74,0.0003041,120]
[380079330,1755531354701,-1960.35,0.0003041,120]
[380079331,1755531354740,-2997.68,0.0003041,120]
[380079332,1755531354780,-400.0,0.0003041,120]
[380079333,1755531354818,-400.0,0.0003041,120]
[380079334,1755531354857,-400.0,0.0003041,120]
[380079335,1755531354896,-400.0,0.0003041,120]
[380079336,1755531354933,-400.0,0.0003041,120]
[380079337,1755531354972,-1076.8,0.0003041,120]
[380079338,1755531355009,-400.0,0.0003041,120]
[380079339,1755531355048,-834.08,0.0003041,120]
[380079340,1755531355086,-1892.22,0.0003041,120]
[380079341,1755531355124,-400.0,0.0003041,120]
[380079342,1755531355161,-964.84,0.0003041,120]
[380079343,1755531355199,-1252.04,0.0003041,120]
[380079344,1755531355242,-6078.48,0.0003041,120]
[380079345,1755531355280,-400.0,0.0003041,120]
[380079346,1755531355329,-400.0,0.0003041,120]
[380079347,1755531355371,-577.43,0.0003041,120]
[380079348,1755531355415,-400.0,0.0003041,120]
[380079349,1755531355457,-400.0,0.0003041,120]
[380079350,1755531355498,-870.1,0.0003041,120]
[380079351,1755531355539,-400.0,0.0003041,120]
[380079352,1755531355581,-730.4,0.0003041,120]
[380079353,1755531355620,-400.0,0.0003041,120]
[380079354,1755531355659,-400.0,0.0003041,120]
[380079355,1755531355702,-1470.19,0.0003041,120]
[380079356,1755531355742,-400.0,0.0003041,120]
[380079357,1755531355783,-671.51,0.0003041,120]
[380079358,1755531355821,-3714.75,0.0003041,120]
[380079359,1755531355859,-400.0,0.0003041,120]
[380079360,1755531355899,-400.0,0.0003041,120]
[380079361,1755531355937,-400.0,0.0003041,120]
[380079362,1755531355974,-400.0,0.0003041,120]
[380079363,1755531356010,-2330.81,0.0003041,120]
[380079364,1755531356044,-400.0,0.0003041,120]
[380079365,1755531356082,-704.43,0.0003041,120]
[380079366,1755531356117,-1142.14,0.0003041,120]
[380079367,1755531356153,-563.4,0.0003041,120]
[380079368,1755531356191,-533.29932654,0.0003041,120]
[380079369,1755531356232,-400.0,0.0003041,120]
[380079370,1755531356271,-2163.04,0.0003041,120]
[380079371,1755531356310,-400.0,0.0003041,120]
[380079372,1755531356348,-705.46,0.0003041,120]
[380079373,1755531356385,-471.82,0.0003041,120]
[380079374,1755531356425,-400.0,0.0003041,120]
[380079375,1755531356464,-400.0,0.0003041,120]
[380079376,1755531356503,-293.25,0.0003041,120]
[380079377,1755531356541,-400.0,0.0003041,120]
[380079378,1755531356578,-6188.23,0.0003041,120]
[380079379,1755531356613,-1062.35,0.0003041,120]
[380079380,1755531356650,-402.36319619,0.0003041,120]
[380079381,1755531356895,-400.0,0.0003041,120]
[380079382,1755531356932,-400.0,0.0003041,120]
[380079383,1755531356971,-400.0,0.0003041,120]
[380079384,1755531357013,-956.27,0.0003041,120]
[380079385,1755531357055,-3649.46,0.0003041,120]
[380079386,1755531357097,-2576.98,0.0003041,120]
[380079387,1755531357139,-2010.89,0.0003041,120]
[380079388,1755531357173,-1158.42,0.0003041,60]
[380079389,1755531357211,-400.0,0.0003041,120]
[380079390,1755531357248,-400.0,0.0003041,120]
[380079391,1755531357285,-400.0,0.0003041,120]
[380079392,1755531357324,-585.53,0.0003041,120]
[380079393,1755531357361,-1994.69,0.0003041,120]
[380079394,1755531357402,-22410.16,0.0003041,120]
[380079395,1755531357441,-1434.92,0.0003041,120]
[380079396,1755531357486,-400.0,0.0003041,120]
[380079397,1755531357558,-916.76,0.0003041,120]
[380079398,1755531357635,-2418.8,0.0003041,120]
[380079399,1755531357675,-10916.68,0.0003041,120]
[380079400,1755531357712,-471.17,0.0003041,120]
[380079401,1755531357746,-400.0,0.0003041,120]
[380079402,1755531357780,-400.0,0.0003041,120]
[380079403,1755531357812,-400.0,0.0003041,120]
[380079404,1755531357846,-560.6,0.0003041,120]
[380079405,1755531357879,-918.16,0.0003041,120]
[380079406,1755531357913,-1668.98,0.0003041,120]
[380079407,1755531357946,-519.78,0.0003041,120]
[380079408,1755531357980,-3130.45,0.0003041,120]
[380079409,1755531358013,-539.87,0.0003041,120]
[380079410,1755531358048,-895.63,0.0003041,120]
[380079411,1755531358085,-666.03,0.0003041,120]
[380079412,1755531358123,-533.75,0.0003041,120]
[380079413,1755531358161,-438.94,0.0003041,120]
[380079414,1755531358204,-400.0,0.0003041,120]
[380079415,1755531358244,-516.51,0.0003041,120]
[380079416,1755531358284,-400.0,0.0003041,120]
[380079417,1755531358322,-400.0,0.0003041,120]
[380079418,1755531358362,-443.38,0.0003041,120]
[380079419,1755531358401,-706.46,0.0003041,120]
[380079420,1755531358441,-526.74,0.0003041,120]
[380079421,1755531358480,-3336.03,0.0003041,120]
[380079422,1755531358519,-837.38,0.0003041,120]
[380079423,1755531358556,-400.0,0.0003041,120]
[380079424,1755531358591,-1832.53,0.0003041,120]
[380079425,1755531358626,-407.46,0.0003041,120]
[380079426,1755531358663,-3758.38,0.0003041,120]
[380079427,1755531358698,-400.0,0.0003041,120]
[380079428,1755531358735,-7618.95,0.0003041,120]
[380079429,1755531358769,-777.9,0.0003041,120]
[380079430,1755531358803,-2909.39,0.0003041,120]
[380079431,1755531358837,-3090.16,0.0003041,120]
[380079432,1755531358871,-400.0,0.0003041,120]
[380079433,1755531358907,-972.28,0.0003041,120]
[380079434,1755531358943,-9090.3,0.0003041,120]
[380079435,1755531358976,-400.0,0.0003041,120]
[380079436,1755531359010,-479.89,0.0003041,120]
[380079437,1755531359046,-1238.0,0.0003041,120]
[380079438,1755531359086,-400.0,0.0003041,120]
[380079439,1755531359127,-400.0,0.0003041,120]
[380079440,1755531359166,-400.0,0.0003041,120]
[380079441,1755531359207,-1354.29,0.0003041,120]
[380079442,1755531359247,-976.37,0.0003041,120]
[380079443,1755531359289,-400.0,0.0003041,120]
[380079444,1755531359328,-400.0,0.0003041,120]
[380079445,1755531359370,-402.32809931,0.0003041,120]
[380079446,1755531359410,-3402.14,0.0003041,120]
[380079447,1755531359450,-1206.51,0.0003041,120]
[380079448,1755531359492,-1034.91,0.0003041,120]
[380079449,1755531359533,-1103.25,0.0003041,120]
[380079450,1755531359572,-400.0,0.0003041,120]
[380079451,1755531359612,-400.0,0.0003041,120]
[380079452,1755531359652,-1090.28,0.0003041,120]
[380079453,1755531359691,-839.83,0.0003041,120]
[380079454,1755531359730,-725.04,0.0003041,120]
[380079455,1755531359771,-761.94,0.0003041,120]
[380079456,1755531359808,-400.0,0.0003041,120]
[380079457,1755531359845,-1534.15,0.0003041,120]
[380079458,1755531359882,-4326.76,0.0003041,120]
[380079459,1755531359919,-615.92,0.0003041,120]
[380079460,1755531359956,-579.27,0.0003041,120]
[380079461,1755531359995,-400.0,0.0003041,120]
[380079462,1755531360034,-3639.38,0.0003041,120]
[380079463,1755531360071,-400.0,0.0003041,120]
[380079464,1755531360111,-2038.58,0.0003041,120]
[380079465,1755531360150,-400.0,0.0003041,120]
[380079466,1755531360191,-2797.24,0.0003041,120]
[380079467,1755531360237,-683.2,0.0003041,120]
[380079468,1755531360279,-400.0,0.0003041,120]
[380079469,1755531360319,-400.0,0.0003041,120]
[380079470,1755531360358,-1718.05,0.0003041,120]
[380079471,1755531360399,-4182.51,0.0003041,120]
[380079472,1755531360441,-502.35,0.0003041,120]
[380079473,1755531360483,-6295.11,0.0003041,120]
[380079474,1755531360525,-400.0,0.0003041,120]
[380079475,1755531360564,-400.0,0.0003041,120]
[380079476,1755531360604,-400.0,0.0003041,120]
[380079477,1755531360645,-1427.56,0.0003041,120]
[380079478,1755531360684,-400.0,0.0003041,120]
[380079479,1755531360722,-619.94,0.0003041,120]
[380079480,1755531360759,-1488.52,0.0003041,120]
[380079481,1755531360795,-400.0,0.0003041,120]
[380079482,1755531360829,-411.17,0.0003041,120]
[380079483,1755531360865,-1735.42,0.0003041,120]
[380079484,1755531360902,-400.0,0.0003041,120]
[380079485,1755531360937,-400.0,0.0003041,120]
[380079486,1755531360974,-1080.28,0.0003041,120]
[380079487,1755531361010,-489.54,0.0003041,120]
[380079488,1755531361046,-400.0,0.0003041,120]
[380079489,1755531361081,-410.37,0.0003041,120]
[380079490,1755531361117,-400.0,0.0003041,120]
[380079491,1755531361152,-5508.55,0.0003041,120]
[380079492,1755531361190,-400.0,0.0003041,120]
[380079493,1755531361227,-400.0,0.0003041,120]
[380079494,1755531361266,-400.0,0.0003041,120]
[380079495,1755531361303,-400.0,0.0003041,120]
[380079496,1755531361341,-1050.76,0.0003041,120]
[380079497,1755531361510,-2870.81,0.0003041,120]
[380079498,1755531361566,-919.08,0.0003041,120]
[380079499,1755531361606,-1992.68,0.0003041,120]
[380079500,1755531361645,-400.0,0.0003041,120]
[380079501,1755531361683,-3684.7,0.0003041,120]
[380079502,1755531361722,-1715.67,0.0003041,120]
[380079503,1755531361760,-3062.51,0.0003041,120]
[380079504,1755531361797,-958.62,0.0003041,120]
[380079505,1755531361834,-6117.57,0.0003041,120]
[380079506,1755531361869,-2026.02,0.0003041,120]
[380079507,1755531361905,-477.15,0.0003041,120]
[380079508,1755531361941,-1281.34,0.0003041,120]
[380079509,1755531361975,-1697.43,0.0003041,120]
[380079510,1755531362015,-812.09,0.0003041,120]
[380079511,1755531362061,-5954.18,0.0003041,120]
[380079512,1755531362099,-400.0,0.0003041,120]
[380079513,1755531362137,-1273.16,0.0003041,120]
[380079514,1755531362174,-556.04,0.0003041,120]
[380079515,1755531362213,-1446.23,0.0003041,120]
[380079516,1755531362254,-400.0,0.0003041,120]
[380079517,1755531362297,-708.16,0.0003041,120]
[380079518,1755531362337,-8688.61,0.0003041,120]
[380079519,1755531362381,-402.03,0.0003041,120]
[380079520,1755531362420,-400.0,0.0003041,120]
[380079521,1755531362458,-701.46,0.0003041,120]
[380079522,1755531362500,-400.0,0.0003041,120]
[380079523,1755531362540,-400.0,0.0003041,120]
[380079524,1755531362579,-1059.25,0.0003041,120]
[380079525,1755531362619,-400.0,0.0003041,120]
[380079526,1755531362659,-2995.99,0.0003041,120]
[380079527,1755531362698,-9485.17,0.0003041,120]
[380079528,1755531362743,-400.0,0.0003041,120]
[380079529,1755531362783,-400.0,0.0003041,120]
[380079530,1755531362834,-3898.08,0.0003041,120]
[380079531,1755531362873,-2500.0,0.0003041,120]
[380079532,1755531362913,-463.18,0.0003041,120]
[380079533,1755531362957,-400.0,0.0003041,120]
[380079534,1755531362996,-400.0,0.0003041,120]
[380079535,1755531363047,-400.0,0.0003041,120]
[380079536,1755531363144,-466.18270673,0.0003041,120]
[380079537,1755531363186,-400.0,0.0003041,120]
[380079538,1755531363231,-400.0,0.0003041,120]
[380079539,1755531363273,-400.0,0.0003041,120]
[380079540,1755531363322,-844.5,0.0003041,120]
[380079541,1755531363365,-3602.65,0.0003041,120]
[380079542,1755531363407,-400.0,0.0003041,120]
[380079543,1755531363447,-969.02,0.0003041,120]
[380079544,1755531363487,-400.0,0.0003041,120]
[380079545,1755531363528,-1379.67,0.0003041,120]
[380079546,1755531363570,-559.7,0.0003041,120]
[380079547,1755531363609,-400.0,0.0003041,120]
[380079548,1755531363647,-400.0,0.0003041,120]
[380079549,1755531363686,-4052.31,0.0003041,120]
[380079550,1755531363726,-1261.68,0.0003041,120]
[380079551,1755531363764,-3406.91,0.0003041,120]
[380079552,1755531363801,-400.0,0.0003041,120]
[380079553,1755531363840,-1616.51,0.0003041,120]
[380079554,1755531363878,-400.67,0.0003041,120]
[380079555,1755531363918,-400.0,0.0003041,120]
[380079556,1755531363959,-2301.52,0.0003041,120]
[380079557,1755531363999,-673.71,0.0003041,120]
[380079558,1755531364039,-3314.95,0.0003041,120]
[380079559,1755531364077,-400.0,0.0003041,120]
[380079560,1755531364115,-846.84,0.0003041,120]
[380079561,1755531364152,-400.0,0.0003041,120]
[380079562,1755531364194,-1557.82,0.0003041,120]
[380079563,1755531364235,-400.0,0.0003041,120]
[380079564,1755531364278,-1948.39,0.0003041,120]
[380079565,1755531364319,-4106.01,0.0003041,120]
[380079566,1755531364361,-400.0,0.0003041,120]
[380079567,1755531364402,-3340.57,0.0003041,120]
[380079568,1755531364442,-1407.02,0.0003041,120]
[380079569,1755531364480,-400.0,0.0003041,120]
[380079570,1755531364518,-400.0,0.0003041,120]
[380079571,1755531364558,-2747.68,0.0003041,120]
[380079572,1755531364596,-400.0,0.0003041,120]